Cogmind - Beta 10.2 @@@ ROGUE MODE // 2021.09.13 @ 21:29:36 Player: ModulinMyGlobulin Result: Destroyed by S-43 Plague with Heavy Machine Gun Performance ------------- Evolutions (9) 4500 Regions Visited (18) 3600 Robots Destroyed (221) 1105 Value Destroyed (8679) 8679 Prototype IDs (39) 780 Alien Tech Used (1) 200 Bonus (1546) 1546 TOTAL SCORE: 20410 Bonus ------- High Alert Combat Kills 938 Follower Combat Kills 308 Met Zhirov 300 Cogmind --------- Core Integrity 0/1600 Matter 286/300 Energy 100/100 System Corruption 11% Temperature Cool (0) Movement Core (50) Location -1/Access Parts ------- > --- POWER (2) -------- (None) > --- PROPULSION (6) --- (None) > --- UTILITY (14) ----- Hacking Suite > --- WEAPON (3) ------- (None) > --- INVENTORY (4) ---- Improved Armor Integrity Analyzer Plasma Sword Force Lance Force Lance Peak State ------------ > --- POWER ------------ Improved Ion Engine Particle Reactor > --- PROPULSION ------- Cooled Nuclear Pulse Thruster Impulse Thruster Array Impulse Thruster Array > --- UTILITY ---------- Advanced Heat Sink High-capacity Storage Unit Advanced Energy Well Experimental Matter Compressor Gravity Neutralizing Apparatus Improved Sensor Array Improved Targeting Computer Experimental Targeting Computer Experimental Core Shielding Thermal Shield Mini Drone Bay > --- WEAPON ----------- Plasma Sword Plasma Sword Plasma Sword > --- INVENTORY -------- Q-thruster Impulse Thruster Array Improved Armor Integrity Analyzer Plasma Sword Force Lance Force Lance Force Lance [Rating: 135] Favorites ----------- Power Quantum Reactor Engine Improved Deuterium Engine Power Core Nuclear Core Reactor Quantum Reactor Propulsion Wheel Treads Armored Treads Leg Aluminum Leg Wheel Wheel Flight Unit Cooled Nuclear Pulse Thruster Utility High-capacity Storage Unit Device Improved Heat Sink Storage High-capacity Storage Unit Processor Improved Targeting Computer Hackware Hacking Suite Protection Centrium Medium Armor Plating Weapon Force Rifle Energy Gun Force Rifle Energy Cannon Advanced Plasma Cannon Ballistic Gun Gauss Rifle Launcher Improved Proton Missile Launcher Slashing Weapon Katana Piercing Weapon Force Lance Build | -11 -10 -9 -8 -7 -6 -6 -6 -6 -5 -5 -5 -5 -4 -4 -3 -3 -2 -1 ------- Run | Scr Mat Mat Mat Fac Fac Ext Cet Arc Fac Upp Upp Zhi Pro Fac Res Tes Res Acc Slots Evolved 18 | . . 2 2 2 2 . . . 2 . . . . 2 2 . 2 2 Power 1 | . . . . . . . . . . . . . . 1 . . . . Propulsion 4 | . . . 2 . . . . . . . . . . 1 . . 1 . Utility 12 | . . 2 . 1 2 . . . 2 . . . . . 2 . 1 2 Weapon 1 | . . . . 1 . . . . . . . . . . . . . . Parts Attached 243 | . 2 16 33 31 38 29 14 1 22 9 5 7 . 5 15 8 4 4 Power 25 | . . 3 2 2 3 3 2 . 2 . 1 1 . 1 3 1 1 . Engine 13 | . . 3 2 2 1 1 1 . . . . . . 1 1 1 . . Core 6 | . . . . . 2 2 . . 1 . 1 . . . . . . . Reactor 6 | . . . . . . . 1 . 1 . . 1 . . 2 . 1 . Propulsion 73 | . . 3 18 11 11 9 4 . 4 2 . 3 . . 4 . 3 1 Treads 38 | . . . 11 8 5 4 4 . 4 2 . . . . . . . . Leg 3 | . . 3 . . . . . . . . . . . . . . . . Wheel 21 | . . . 7 3 6 5 . . . . . . . . . . . . Hover . | . . . . . . . . . . . . . . . . . . . Flight 11 | . . . . . . . . . . . . 3 . . 4 . 3 1 Utility 60 | . 2 6 2 6 10 5 1 . 6 2 3 3 . 4 6 3 . 1 Device 29 | . . 3 2 4 5 1 . . 2 1 2 1 . 2 4 2 . . Storage 9 | . 2 1 . . 1 2 . . . . . 1 . . 1 1 . . Processor 8 | . . 2 . . 2 . . . 2 . . . . 2 . . . . Hackware 2 | . . . . . . . . . . . . . . . 1 . . 1 Protection 12 | . . . . 2 2 2 1 . 2 1 1 1 . . . . . . Artifact . | . . . . . . . . . . . . . . . . . . . Weapon 85 | . . 4 11 12 14 12 7 1 10 5 1 . . . 2 4 . 2 Energy Gun 40 | . . 2 7 9 8 6 2 1 3 2 . . . . . . . . Energy Cannon 1 | . . . . . . . . . . 1 . . . . . . . . Ballistic Gun 25 | . . 2 3 2 3 4 4 . 6 1 . . . . . . . . Ballistic Cannon . | . . . . . . . . . . . . . . . . . . . Launcher 4 | . . . . 1 . 2 1 . . . . . . . . . . . Special Weapon . | . . . . . . . . . . . . . . . . . . . Impact Weapon . | . . . . . . . . . . . . . . . . . . . Slashing Weapon 12 | . . . 1 . 3 . . . 1 1 1 . . . . 4 . 1 Piercing Weapon 3 | . . . . . . . . . . . . . . . 2 . . 1 Special Melee Weapon . | . . . . . . . . . . . . . . . . . . . Unidentified Prototypes 22 | . . 3 3 . 1 . 4 . . . . 5 . . 1 4 . 1 Parts Lost 111 | . . . 4 13 16 12 6 . 15 9 11 . 1 . 6 2 5 11 Power 13 | . . . 1 1 1 1 . . 1 . 2 . . . 3 . 1 2 Propulsion 37 | . . . 2 5 8 5 3 . 4 2 1 . . . 1 . 2 4 Utility 26 | . . . . . 3 2 . . 2 4 4 . 1 . 2 2 2 4 Weapon 35 | . . . 1 7 4 4 3 . 8 3 4 . . . . . . 1 Highest Loss Streak 9 | . . . 2 4 6 4 6 . 3 9 6 . 1 . 3 1 5 5 Average Slot Usage (%) 88 | . 96 95 97 95 96 98 94 93 91 84 53 16 39 47 53 77 78 25 Engine 3 | . 14 11 8 6 3 1 1 . . . . . . . 1 1 4 . Core 1 | . . . . . 2 4 . . . . . . . . . . . . Reactor 1 | . . . . . . . 4 6 4 5 2 1 5 5 3 4 4 2 Treads 12 | . . . 23 15 13 13 19 20 16 17 8 . . . . . . . Leg 2 | . 28 22 . . . . . . . . . . . . . . . . Wheel 5 | . . . 9 13 10 12 1 . . . . . . . . . . . Flight 1 | . . . . . . . . . . . . 5 17 15 13 14 15 6 Device 9 | . . 11 8 10 13 6 6 6 9 5 7 2 3 7 5 21 20 2 Storage 12 | . 24 11 9 7 12 13 20 20 17 17 12 2 5 5 4 9 8 1 Processor 14 | . . 16 18 15 13 20 14 13 17 13 8 . . 7 9 9 7 3 Protection 3 | . . . . 4 3 5 4 6 4 5 5 2 5 5 4 4 4 . Energy Gun 8 | . 28 11 10 13 12 6 6 10 7 1 . . . . . . . . Ballistic Gun 5 | . . 10 6 6 3 8 12 8 8 11 . . . . . . . . Slashing Weapon 1 | . . . . . 2 3 . . . 2 2 . . . . 7 13 4 Naked Turns 113 | . . . . . . . . . . . 60 53 . . . . . . Heaviest Build 115 | 10 22 47 48 61 99 100 113 114 115 111 108 19 19 22 63 77 75 73 Greatest Support 140 | 20 20 23 80 64 76 60 138 138 140 137 81 27 27 31 75 75 86 77 Greatest Overweight (x) 14 | . 1 2 14 5 9 9 4 . 1 1 1 2 . . 1 1 . 3 Average Overweight (x) 1 | . . 1 1 1 4 3 . . . . . . . . . . . . Largest Inventory Capacity 20 | . 12 20 12 12 20 20 20 20 20 20 20 4 4 4 12 12 12 12 Average Capacity 15 | . 10 12 12 12 19 20 20 20 20 20 15 4 4 4 5 12 12 4 Most Carried 20 | . 8 12 12 12 20 20 20 20 19 14 13 4 4 4 7 8 9 6 Average Carried 13 | . 7 11 11 11 18 18 18 18 15 9 9 3 4 3 4 6 7 4 Final Capacity 20 | 6 12 12 12 12 20 20 20 20 20 20 4 4 4 4 12 12 12 4 Final Carried 20 | 6 8 12 12 11 18 19 20 18 14 14 4 4 4 4 5 8 6 4 Class Distribution -------------------- 30% | Scavenger-Mutant 23% | Scavenger-Gunner 20% | Mutant 11% | Scavenger-Skirmisher 8% | Sprinter 3% | Hauler-Gunner Dominant Class ---------------- Mutant | -10/Materials Mutant | -9/Materials Scavenger-Mutant | -8/Materials Scavenger-Gunner | -7/Factory Scavenger-Mutant | -6/Factory Scavenger-Mutant | -6/Extension Scavenger-Gunner | -6/Cetus Scavenger-Gunner | -6/Archives Scavenger-Skirmisher | -5/Factory Scavenger-Mutant | -5/Upper Caves Scavenger-Mutant | -5/Upper Caves Sprinter | -5/Zhirov Sprinter | -4/Proximity Caves Sprinter | -4/Factory Sprinter | -3/Research Sprinter | -3/Testing Sprinter | -2/Research Mutant | -1/Access Resources | -11 -10 -9 -8 -7 -6 -6 -6 -6 -5 -5 -5 -5 -4 -4 -3 -3 -2 -1 ----------- Run | Scr Mat Mat Mat Fac Fac Ext Cet Arc Fac Upp Upp Zhi Pro Fac Res Tes Res Acc Matter Collected 5235 | 200 20 360 607 423 874 580 240 212 646 515 63 . 60 . 191 244 . . Remotely 48 | . . 48 . . . . . . . . . . . . . . . . Salvage Created 11541 | . 102 656 1815 928 1974 1184 544 382 2268 815 203 . . . 186 400 84 . Parts 588 | . 6 44 108 59 89 83 29 21 100 25 7 . . . 3 9 5 . Haulers Intercepted 15 | . 1 4 4 1 3 . . . . . . . . . 1 1 . . Recyclers Shooed 6 | . . . . . 4 1 . . 1 . . . . . . . . . Parts Field Recycled . | . . . . . . . . . . . . . . . . . . . Retrieved Matter . | . . . . . . . . . . . . . . . . . . . Parts Self-Destructed 21 | . . . . . . . . . . 15 6 . . . . . . . Prevented . | . . . . . . . . . . . . . . . . . . . Kills | -11 -10 -9 -8 -7 -6 -6 -6 -6 -5 -5 -5 -5 -4 -4 -3 -3 -2 -1 ------- Run | Scr Mat Mat Mat Fac Fac Ext Cet Arc Fac Upp Upp Zhi Pro Fac Res Tes Res Acc Combat Hostiles Destroyed 168 | . 3 11 30 18 23 16 8 4 36 13 4 . . . 1 . 1 . Melee 4 | . . . . . . . . . . 1 1 . . . 1 . 1 . Guns 152 | . 3 9 30 15 23 15 7 4 33 11 2 . . . . . . . Cannons 1 | . . . . . . . . . . 1 . . . . . . . . AOE 8 | . . 2 . 2 . 1 . . 3 . . . . . . . . . Classes Destroyed 15 | . 2 4 4 2 . 1 1 1 . . . . . . . . . . Worker 9 | . . . 2 1 1 1 . . 4 . . . . . . . . . Builder 8 | . . . 1 . 1 3 . . 3 . . . . . . . . . Hauler 15 | . 1 4 4 1 3 . . . . . . . . . 1 1 . . Recycler 9 | . . . 3 . 1 1 . . 2 . . . . . . 2 . . Carrier 1 | . . . . . . . 1 . . . . . . . . . . . Operator 1 | . . . . . . . . 1 . . . . . . . . . . Watcher 10 | . . 1 3 2 1 2 . . 1 . . . . . . . . . Swarmer 45 | . 3 3 10 6 3 3 3 . 11 1 2 . . . . . . . Grunt 53 | . . 6 11 5 6 7 . . 14 4 . . . . . . . . Brawler 4 | . . . 1 . . 1 . . 1 1 . . . . . . . . Duelist 5 | . . 1 . 1 . . . . 1 2 . . . . . . . . Sentry 29 | . . 1 8 4 4 1 . 4 3 1 1 . . . 1 . 1 . Hunter 12 | . . . . 1 5 2 . . 4 . . . . . . . . . Programmer 10 | . . . . 1 5 . 1 . 2 . 1 . . . . . . . Behemoth 2 | . . . . . . 2 . . . . . . . . . . . . Cetus Guard 4 | . . . . . . . 4 . . . . . . . . . . . Thug 4 | . . . . . . . . . . 4 . . . . . . . . Best Kill Streak 12 | . 3 7 10 7 2 5 5 5 12 9 3 . . . 1 3 1 . Combat Bots Only 9 | . 3 7 9 7 2 4 4 4 7 9 3 . . . 1 . 1 . Max Kills in Single Turn 7 | . 1 1 2 2 2 2 2 2 7 1 1 . . . 1 1 1 . Gunslinging 1 | . . . 1 . 1 . 1 . 1 . . . . . . . . . Exploded 3 | . . 1 . 2 . 1 . . 3 . . . . . . . . . Melee 1 | . . . . . . . . . . 1 1 . . . 1 . 1 . Uniques/NPCs Destroyed . | . . . . . . . . . . . . . . . . . . . Combat | -11 -10 -9 -8 -7 -6 -6 -6 -6 -5 -5 -5 -5 -4 -4 -3 -3 -2 -1 -------- Run | Scr Mat Mat Mat Fac Fac Ext Cet Arc Fac Upp Upp Zhi Pro Fac Res Tes Res Acc Damage Taken 22103 | . 119 427 1662 2075 2414 1987 1057 299 3630 2813 1747 . 26 23 905 . 764 2155 Core 3661 | . 7 77 254 181 252 183 55 64 272 162 292 . . . 143 . 119 1600 Absorbed by Shields . | . . . . . . . . . . . . . . . . . . . Reduced by Siege Mode 261 | . . . . . . . . . 121 140 . . . . . . . . Core Remaining (%) 74 | 100 97 80 53 74 . . . 34 . . . . 27 100 . 89 91 . Volleys Fired 544 | . 9 29 106 68 105 67 19 14 89 31 7 . . . . . . . Largest 3 | . 2 2 2 3 3 3 3 3 3 3 2 . . . . . . . Hottest 235 | . 80 68 112 223 235 188 143 143 196 209 105 . . . . . . . Shots Fired 1195 | . 18 58 209 124 235 167 45 36 228 65 10 . . . . . . . Gun 1176 | . 18 58 209 122 235 162 41 36 228 57 10 . . . . . . . Cannon 8 | . . . . . . . . . . 8 . . . . . . . . Launcher 11 | . . . . 2 . 5 4 . . . . . . . . . . . Special . | . . . . . . . . . . . . . . . . . . . Kinetic 536 | . . 29 65 36 43 104 29 28 144 50 8 . . . . . . . Thermal 545 | . 9 5 113 66 182 58 3 8 84 15 2 . . . . . . . Explosive . | . . . . . . . . . . . . . . . . . . . Electromagnetic 114 | . 9 24 31 22 10 5 13 . . . . . . . . . . . Robot Hit Streak 32 | . 5 11 31 15 19 13 13 9 18 32 8 . . . . . . . Robot Miss Streak 8 | . 4 2 3 8 3 5 2 2 3 1 1 . . . . . . . Penetration Max 1 | . . . . . . 1 1 1 1 1 . . . . . . . . Secondary Targets 34 | . 2 2 6 1 2 5 3 . 13 . . . . . . . . . Max Gunslinging Chain 2 | . 1 1 1 1 1 1 1 . 2 . . . . . . . . . Shots Hit Robots 953 | . 9 48 159 103 175 116 37 26 180 60 20 . . . 6 3 11 . Core Hits 498 | . 5 28 67 67 85 68 43 12 80 27 6 . . . 3 3 3 1 Critical Hits 33 | . . . 1 . 10 3 1 4 11 2 . . . . . . 1 . Critical Kills 12 | . . . 1 . 4 1 1 3 2 . . . . . . . . . Critical Parts Destroyed 19 | . . . . . 6 2 . . 9 2 . . . . . . . . Melee Attacks 69 | . . . 4 . 7 . . . 1 3 12 . . . 9 3 18 12 Impact . | . . . . . . . . . . . . . . . . . . . Slashing 55 | . . . 4 . 7 . . . 1 3 12 . . . . 1 18 9 Piercing 14 | . . . . . . . . . . . . . . . 9 2 . 3 Sneak Attacks 5 | . . . . . . . . . . . . . . . 1 3 1 . Combat Hostiles . | . . . . . . . . . . . . . . . . . . . Follow-up Attacks 3 | . . . . . . . . . . . . . . . . . 3 . Damage Inflicted 23304 | . 97 802 2836 1831 3948 2582 1211 610 5669 1749 602 . . . 464 320 579 4 Guns 19643 | . 97 707 2836 1761 3948 2389 1016 610 4681 1389 209 . . . . . . . Cannons 269 | . . . . . . . . . . 269 . . . . . . . . Explosions 1540 | . . 95 . 70 . 193 195 . 987 . . . . . . . . . Melee 1825 | . . . . . . . . . . 91 375 . . . 460 320 579 . Ramming 27 | . . . . . . . . . 1 . 18 . . . 4 . . 4 Kinetic 8915 | . . 250 617 493 690 1423 760 460 2783 1273 166 . . . . . . . Thermal 10454 | . 33 151 1697 962 3102 966 80 150 2885 385 43 . . . . . . . Explosive . | . . . . . . . . . . . . . . . . . . . Electromagnetic 2083 | . 64 401 522 376 156 193 371 . . . . . . . . . . . Impact . | . . . . . . . . . . . . . . . . . . . Slashing 1184 | . . . . . . . . . . 91 375 . . . . 139 579 . Piercing 641 | . . . . . . . . . . . . . . . 460 181 . . Highest Corruption 19 | . 1 . . 1 3 3 4 4 7 12 19 19 19 4 . . . 11 Average Corruption 4 | . 1 . . 1 2 3 3 4 5 10 14 19 19 4 . . . 3 Corruption Purged . | . . . . . . . . . . . . . . . . . . . Effects 194 | . 1 . . 4 27 22 8 7 47 31 15 11 12 . . . . 9 Message Errors 39 | . . . . 3 6 7 1 3 10 4 1 1 1 . . . . 2 Matter Fused 32 | . . . . . 9 6 3 . 4 3 4 1 1 . . . . 1 Heat Flow Errors 22 | . . . . . 5 3 1 1 3 6 . 1 . . . . . 2 Energy Discharges 11 | . 1 . . . 2 1 . . 5 . 1 1 . . . . . . Parts Rejected 2 | . . . . . . . . . 2 . . . . . . . . . Data Loss (minor) 15 | . . . . . 1 1 . 2 6 1 1 . 1 . . . . 2 Data Loss (major) 1 | . . . . . . . . . 1 . . . . . . . . . Misfires 6 | . . . . . . . . . 1 4 1 . . . . . . . Misdirections 20 | . . . . . . . . . . . 3 7 9 . . . . 1 Targeting Errors 37 | . . . . 1 4 3 2 1 12 10 3 . . . . . . 1 Weapon Failures 9 | . . . . . . 1 1 . 3 3 1 . . . . . . . Overload Shots . | . . . . . . . . . . . . . . . . . . . Overflow Damage 312 | . . . . . . . . . 257 21 1 . . . 33 . . . Projectiles . | . . . . . . . . . . . . . . . . . . . Explosions 257 | . . . . . . . . . 257 . . . . . . . . . Melee 55 | . . . . . . . . . . 21 1 . . . 33 . . . Knockbacks . | . . . . . . . . . . . . . . . . . . . Impact . | . . . . . . . . . . . . . . . . . . . Kinetic . | . . . . . . . . . . . . . . . . . . . Secondary . | . . . . . . . . . . . . . . . . . . . Self-Inflicted Damage 6 | . . . . . . 2 . . . . . . . . 2 . . 2 Shots 1 | . . . . . . 1 . . . . . . . . . . . . Rammed 6 | . . . . . . . . . 1 . 3 . . . 1 . . 1 Targets Rammed 6 | . . . . . . . . . 1 . 3 . . . 1 . . 1 Kicked . | . . . . . . . . . . . . . . . . . . . Crushed . | . . . . . . . . . . . . . . . . . . . Highest Temperature 462 | . 126 8 11 462 410 220 208 173 242 353 . 77 . . . . . 205 Average Temperature 97 | . 55 4 4 238 126 58 113 53 35 108 . 39 . . . . . 106 Received Heat Transfer 3840 | . . 159 621 453 261 285 126 45 675 783 117 . . . 99 . 72 144 Effects 15 | . . . . 10 2 . . . . 3 . . . . . . . . Shutdowns 1 | . . . . . 1 . . . . . . . . . . . . . Energy Bleed 1 | . . . . 1 . . . . . . . . . . . . . . Interference 12 | . . . . 8 1 . . . . 3 . . . . . . . . Matter Decay 1 | . . . . 1 . . . . . . . . . . . . . . Siege Activations 7 | . . . . . . . . . 6 1 . . . . . . . . Total Turns 179 | . . . . . . . . . 138 41 . . . . . . . . Longest Duration 41 | . . . . . . . . . 33 41 . . . . . . . . Robots Corrupted 1 | . . . . . . . 1 . . . . . . . . . . . Combat Hostiles 1 | . . . . . . . 1 . . . . . . . . . . . Parts Fried 8 | . . 1 3 1 1 . 2 . . . . . . . . . . . Impact Corruptions . | . . . . . . . . . . . . . . . . . . . Robots Melted 1 | . . . . 1 . . . . . . . . . . . . . . Combat Hostiles 1 | . . . . 1 . . . . . . . . . . . . . . Parts Melted 44 | . . . 8 5 23 2 . . 5 1 . . . . . . . . Heat Transferred 16655 | . 75 275 3404 2095 5113 1622 74 185 3153 585 74 . . . . . . . Parts Sabotaged . | . . . . . . . . . . . . . . . . . . . Parts Stolen . | . . . . . . . . . . . . . . . . . . . Parts Stripped . | . . . . . . . . . . . . . . . . . . . Power Chain Reactions 2 | . . 2 . . . . . . . . . . . . . . . . Missiles Intercepted . | . . . . . . . . . . . . . . . . . . . Alert | -11 -10 -9 -8 -7 -6 -6 -6 -6 -5 -5 -5 -5 -4 -4 -3 -3 -2 -1 ------- Run | Scr Mat Mat Mat Fac Fac Ext Cet Arc Fac Upp Upp Zhi Pro Fac Res Tes Res Acc Peak Influence 1112 | . 106 264 555 605 382 410 327 278 1112 . . . . 15 666 381 407 842 Initial 374 | . . 44 94 214 296 134 147 130 97 . . . . . 7 374 208 244 Average 290 | . 54 130 389 264 218 183 206 254 476 . . . . 3 287 372 264 444 Maximum Alert Level 4 | . . 1 2 2 1 2 1 1 4 . . . . . 2 1 2 3 Low Security (%) 40 | . 100 82 16 21 35 65 73 13 43 . . . . 100 36 . . . Level 1 37 | . . 17 22 59 64 33 26 86 14 . . . . . 27 100 95 44 Level 2 14 | . . . 60 18 . 1 . . . . . . . . 36 . 4 45 Level 3 6 | . . . . . . . . . 37 . . . . . . . . 10 Level 4 . | . . . . . . . . . 3 . . . . . . . . . Level 5 . | . . . . . . . . . . . . . . . . . . . High Security . | . . . . . . . . . . . . . . . . . . . Max Security . | . . . . . . . . . . . . . . . . . . . Squads Dispatched 42 | . . . 7 9 9 3 . . 6 . 1 . . . 2 . . 5 Investigation 8 | . . . 2 1 2 1 . . . . . . . . . . . 2 Extermination 8 | . . . . 2 4 . . . 1 . . . . . . . . 1 Reinforcement 12 | . . . 1 2 3 2 . . . . . . . . 2 . . 2 Assault 4 | . . . . . . . . . 3 . 1 . . . . . . . Garrison 10 | . . . 4 4 . . . . 2 . . . . . . . . . Intercept . | . . . . . . . . . . . . . . . . . . . Construction Impeded 3 | . . . . 1 . 2 . . . . . . . . . . . . Haulers Reinforced 2 | . . . . 1 1 . . . . . . . . . . . . . Stealth | -11 -10 -9 -8 -7 -6 -6 -6 -6 -5 -5 -5 -5 -4 -4 -3 -3 -2 -1 --------- Run | Scr Mat Mat Mat Fac Fac Ext Cet Arc Fac Upp Upp Zhi Pro Fac Res Tes Res Acc Distress Signals 18 | . . 3 3 . 2 5 . . 1 . . . . 1 1 . 1 1 Communications Jammed . | . . . . . . . . . . . . . . . . . . . Distress Signals . | . . . . . . . . . . . . . . . . . . . Times Spotted 375 | . 5 16 39 30 35 27 10 4 52 13 10 . 3 3 58 2 19 49 Peak Tracking Total 18 | . 4 9 9 6 4 5 5 1 7 9 7 . 3 3 14 2 14 18 Tactical Retreats 38 | . . . 1 3 2 1 . . 5 . 3 . . . 12 . 2 9 Traps | -11 -10 -9 -8 -7 -6 -6 -6 -6 -5 -5 -5 -5 -4 -4 -3 -3 -2 -1 ------- Run | Scr Mat Mat Mat Fac Fac Ext Cet Arc Fac Upp Upp Zhi Pro Fac Res Tes Res Acc Traps Triggered 20 | . 1 . 4 2 2 8 . . . . . . . 1 1 . . 1 Indirectly . | . . . . . . . . . . . . . . . . . . . Trap Hack Attempts . | . . . . . . . . . . . . . . . . . . . Triggered . | . . . . . . . . . . . . . . . . . . . Disarmed . | . . . . . . . . . . . . . . . . . . . Reprogrammed . | . . . . . . . . . . . . . . . . . . . Reused . | . . . . . . . . . . . . . . . . . . . Traps Extracted . | . . . . . . . . . . . . . . . . . . . Installed . | . . . . . . . . . . . . . . . . . . . Triggered 3 | . . . . 1 . . . . . . 2 . . . . . . . Machines | -11 -10 -9 -8 -7 -6 -6 -6 -6 -5 -5 -5 -5 -4 -4 -3 -3 -2 -1 ---------- Run | Scr Mat Mat Mat Fac Fac Ext Cet Arc Fac Upp Upp Zhi Pro Fac Res Tes Res Acc Machines Disabled 25 | . . 1 1 . 2 2 . 2 17 . . . . . . . . . Max in Single Turn 9 | . . 1 1 . 1 2 . 1 9 . . . . . . . . . Garrison Access 1 | . . . . . . . . . 1 . . . . . . . . . Machines Sabotaged . | . . . . . . . . . . . . . . . . . . . Garrisons Compromised . | . . . . . . . . . . . . . . . . . . . Overloaded Fab Kills . | . . . . . . . . . . . . . . . . . . . Fab Network Shutdowns . | . . . . . . . . . . . . . . . . . . . Hacking | -11 -10 -9 -8 -7 -6 -6 -6 -6 -5 -5 -5 -5 -4 -4 -3 -3 -2 -1 --------- Run | Scr Mat Mat Mat Fac Fac Ext Cet Arc Fac Upp Upp Zhi Pro Fac Res Tes Res Acc Machines Accessed 60 | . 5 2 8 6 7 6 1 1 6 . . 6 . 1 4 2 1 4 Terminals 44 | . 5 2 7 4 6 6 1 . 4 . . . . . 3 2 . 4 Fabricators 5 | . . . . 2 1 . . . 1 . . . . . 1 . . . Repair Stations . | . . . . . . . . . . . . . . . . . . . Recycling Units . | . . . . . . . . . . . . . . . . . . . Scanalyzers 4 | . . . 1 . . . . . 1 . . . . 1 . . 1 . Garrison Access . | . . . . . . . . . . . . . . . . . . . Total Hacks 139 | . 12 7 18 15 15 11 1 11 14 . . 12 . 1 11 3 2 6 Successful 82 | . 4 4 8 11 7 6 1 11 8 . . 12 . 1 7 1 1 . Failed 57 | . 8 3 10 4 8 5 . . 6 . . . . . 4 2 1 6 Catastrophic 11 | . . . 3 1 3 . . . 1 . . . . . . 1 . 2 Database Lockouts . | . . . . . . . . . . . . . . . . . . . Manual 60 | . 10 6 9 8 8 4 . . 7 . . . . . 4 2 . 2 Terminals 99 | . 12 7 16 11 14 11 1 . 9 . . . . . 9 3 . 6 Fabricators 10 | . . . . 4 1 . . . 3 . . . . . 2 . . . Repair Stations . | . . . . . . . . . . . . . . . . . . . Recycling Units . | . . . . . . . . . . . . . . . . . . . Scanalyzers 7 | . . . 2 . . . . . 2 . . . . 1 . . 2 . Garrison Access . | . . . . . . . . . . . . . . . . . . . Terminal Hacks 46 | . 2 2 3 3 3 3 1 11 2 . . 12 . . 3 1 . . Record 14 | . . . . . . . . 11 . . . 3 . . . . . . Part Schematic 4 | . . . . . . . . . . . . 4 . . . . . . Robot Analysis 1 | . . . . . . . . . . . . 1 . . . . . . Prototype ID Bank 8 | . 1 1 . 1 . 1 . . . . . 4 . . . . . . Open Door 3 | . . . . . . 2 1 . . . . . . . . . . . Branch Access Points 3 | . . . . . 1 . . . 1 . . . . . 1 . . . Alert Level 5 | . . . 1 2 1 . . . 1 . . . . . . . . . Unreport Threat 1 | . . . . . 1 . . . . . . . . . . . . . Locate Traps 1 | . . . . . . . . . . . . . . . . 1 . . Dispatch Records 1 | . 1 . . . . . . . . . . . . . . . . . Hauler Manifests 4 | . . 1 2 . . . . . . . . . . . 1 . . . Zone Layout 1 | . . . . . . . . . . . . . . . 1 . . . Fabricator Hacks 8 | . . . . 4 . . . . 2 . . . . . 2 . . . Load Schematic 4 | . . . . 2 . . . . 1 . . . . . 1 . . . Build 4 | . . . . 2 . . . . 1 . . . . . 1 . . . Repair Station Hacks . | . . . . . . . . . . . . . . . . . . . Recycling Unit Hacks . | . . . . . . . . . . . . . . . . . . . Scanalyzer 6 | . . . 2 . . . . . 2 . . . . 1 . . 1 . Insert Component 4 | . . . 1 . . . . . 1 . . . . 1 . . 1 . Analyze 2 | . . . 1 . . . . . 1 . . . . . . . . . Garrison Access Hacks . | . . . . . . . . . . . . . . . . . . . Unauthorized Hacks 22 | . 2 2 3 4 4 3 . . 2 . . . . . 2 . . . Terminals 22 | . 2 2 3 4 4 3 . . 2 . . . . . 2 . . . Botnet 22 | . 2 2 3 4 4 3 . . 2 . . . . . 2 . . . Fabricators . | . . . . . . . . . . . . . . . . . . . Repair Stations . | . . . . . . . . . . . . . . . . . . . Recycling Units . | . . . . . . . . . . . . . . . . . . . Scanalyzers . | . . . . . . . . . . . . . . . . . . . Garrison Access . | . . . . . . . . . . . . . . . . . . . Data Cores Recovered . | . . . . . . . . . . . . . . . . . . . Used . | . . . . . . . . . . . . . . . . . . . Hacking Detections 39 | . 5 1 6 5 7 2 . . 5 . . . . . 2 2 1 3 Full Trace Events 7 | . . . 2 . 2 1 . . . . . . . . . . . 2 Feedback Events . | . . . . . . . . . . . . . . . . . . . Feedback Blocked . | . . . . . . . . . . . . . . . . . . . Robot Schematics Acquired . | . . . . . . . . . . . . . . . . . . . Robots Built . | . . . . . . . . . . . . . . . . . . . Matter . | . . . . . . . . . . . . . . . . . . . Time . | . . . . . . . . . . . . . . . . . . . Total Robot Build Rating . | . . . . . . . . . . . . . . . . . . . Part Schematics Acquired 6 | . . . 1 . . . . . 1 . . 4 . . . . . . Parts Built 7 | . . . . 4 . . . . 2 . . . . . 1 . . . Matter 822 | . . . . 292 . . . . 212 . . . . . 318 . . . Time 421 | . . . . 146 . . . . 106 . . . . . 169 . . . Total Part Build Rating 30 | . . . . 12 . . . . 12 . . . . . 6 . . . Parts Repaired . | . . . . . . . . . . . . . . . . . . . Time . | . . . . . . . . . . . . . . . . . . . Parts Recycled . | . . . . . . . . . . . . . . . . . . . Recycled Matter . | . . . . . . . . . . . . . . . . . . . Retrieved Matter . | . . . . . . . . . . . . . . . . . . . Retrieved Components . | . . . . . . . . . . . . . . . . . . . Parts Scanalyzed 3 | . . . 1 . . . . . 1 . . . . . . . 1 . Part Schematics Acquired 2 | . . . 1 . . . . . 1 . . . . . . . . . Parts Damaged . | . . . . . . . . . . . . . . . . . . . Bothacking | -11 -10 -9 -8 -7 -6 -6 -6 -6 -5 -5 -5 -5 -4 -4 -3 -3 -2 -1 ------------ Run | Scr Mat Mat Mat Fac Fac Ext Cet Arc Fac Upp Upp Zhi Pro Fac Res Tes Res Acc Used RIF Installer . | . . . . . . . . . . . . . . . . . . . Robots Hacked . | . . . . . . . . . . . . . . . . . . . Non-combat . | . . . . . . . . . . . . . . . . . . . Combat . | . . . . . . . . . . . . . . . . . . . Robot Hacks Applied . | . . . . . . . . . . . . . . . . . . . Relay Couplers Released 1 | . . . . . . . . . 1 . . . . . . . . . Machine Destruction 1 | . . . . . . . . . 1 . . . . . . . . . Robots Rewired 6 | . . . . . . 6 . . . . . . . . . . . . Allies Hacked . | . . . . . . . . . . . . . . . . . . . Hacks Repelled . | . . . . . . . . . . . . . . . . . . . Allies | -11 -10 -9 -8 -7 -6 -6 -6 -6 -5 -5 -5 -5 -4 -4 -3 -3 -2 -1 -------- Run | Scr Mat Mat Mat Fac Fac Ext Cet Arc Fac Upp Upp Zhi Pro Fac Res Tes Res Acc Total Allies 7 | . . . . . . 7 . . . . . . . . . . . . Largest Group 7 | . . . . . . 7 . . . . . . . . . . . . Highest-Rated Group 182 | . . . . . . 182 . . . . . . . . . . . . Highest-Rated Ally 31 | . . . . . . 31 . . . . . . . . . . . . Total Orders 3 | . . . . . . . . . . . . . . . . . 3 . EXPLORE 3 | . . . . . . . . . . . . . . . . . 3 . Ally Attacks 33 | . . . . . . 33 . . . . . . . . . . . . Total Damage 1075 | . . . . . . 1075 . . . . . . . . . . . . Kills 9 | . . . . . . 9 . . . . . . . . . . . . Allies Corrupted . | . . . . . . . . . . . . . . . . . . . Allies Melted . | . . . . . . . . . . . . . . . . . . . Intel | -11 -10 -9 -8 -7 -6 -6 -6 -6 -5 -5 -5 -5 -4 -4 -3 -3 -2 -1 ------- Run | Scr Mat Mat Mat Fac Fac Ext Cet Arc Fac Upp Upp Zhi Pro Fac Res Tes Res Acc Robot Analysis Total 1 | . . . . . . . . . . . . 1 . . . . . . Derelict Logs Recovered 3 | . . . . . . . . . . . 2 . 1 . . . . . Drone Launches 3 | . . . . . . . . . . . . . . . . . 3 . Drone Recoveries 3 | . . . . . . . . . . . . . . . . . 3 . Exploration | -11 -10 -9 -8 -7 -6 -6 -6 -6 -5 -5 -5 -5 -4 -4 -3 -3 -2 -1 ------------- Run | Scr Mat Mat Mat Fac Fac Ext Cet Arc Fac Upp Upp Zhi Pro Fac Res Tes Res Acc Turns Passed 11560 | . 319 692 1640 1058 2212 1126 333 222 1773 543 221 109 92 85 525 130 124 356 Spaces Moved 9133 | 1 207 313 886 656 1276 608 158 105 834 233 173 209 317 265 1495 304 265 828 Core 355 | . . . 1 . . . . . . . 120 109 . . . . . 125 Treads 1976 | . . . 378 90 83 54 146 105 834 233 53 . . . . . . . Legs 570 | 1 207 313 49 . . . . . . . . . . . . . . . Wheels 2783 | . . . 458 566 1193 554 12 . . . . . . . . . . . Hover . | . . . . . . . . . . . . . . . . . . . Flight 3449 | . . . . . . . . . . . . 100 317 265 1495 304 265 703 Fastest Speed 26 | 120 120 150 100 100 115 120 120 160 160 163 50 29 29 26 27 32 29 34 Average Speed 96 | 120 139 176 133 113 133 125 156 160 161 183 92 43 29 28 30 32 30 37 Slowest Speed 750 | 120 150 180 750 230 250 197 160 160 180 190 190 150 29 29 109 108 34 280 Overloaded Moves 7 | . . . . . . . . . . . . . . 7 . . . . Propulsion Burnouts . | . . . . . . . . . . . . . . . . . . . Robots Hopped 33 | . . . . . . . . . . . . 2 . . 11 1 4 15 Cave-ins Triggered . | . . . . . . . . . . . . . . . . . . . Exploration Rate (%) 41 | 2 48 31 71 17 32 70 74 89 26 48 32 62 62 10 44 27 11 34 Regions Visited 18 Branch Regions 8 Pre-discovered Areas 1 | . . . . . . . . . . . . 1 . . . . . . Known Exits Taken 4 | . . . . . 1 . . . 1 . . . 1 . 1 . . . Unknown Exits Taken 14 | 1 1 1 1 1 . 1 1 1 . 1 1 1 . 1 . 1 1 . Scrap Searched 1 | . . . . . . . . . . . 1 . . . . . . . Spaces Dug 26 | . . . 4 . 7 . . . 1 . . . . . 3 . 4 7 Terrain Destroyed 66 | . . 4 4 . 7 . 1 3 31 2 . . . . 3 . 4 7 Melee 26 | . . . 4 . 7 . . . 1 . . . . . 3 . 4 7 Projectile 19 | . . . . . . . 1 3 13 2 . . . . . . . . AOE 21 | . . 4 . . . . . . 17 . . . . . . . . . Terrain Rammed . | . . . . . . . . . . . . . . . . . . . Walls Destroyed . | . . . . . . . . . . . . . . . . . . . Machines Disabled . | . . . . . . . . . . . . . . . . . . . Actions | -11 -10 -9 -8 -7 -6 -6 -6 -6 -5 -5 -5 -5 -4 -4 -3 -3 -2 -1 --------- Run | Scr Mat Mat Mat Fac Fac Ext Cet Arc Fac Upp Upp Zhi Pro Fac Res Tes Res Acc Total 10678 | . 218 399 1126 857 1563 830 206 133 1082 289 201 220 316 271 1526 324 281 836 Wait 428 | . . 14 69 82 106 9 . 5 124 7 1 3 . . 4 4 . . Move 9056 | . 206 312 885 655 1275 607 157 104 833 232 172 204 316 264 1474 301 257 802 Hop 26 | . . . . . . . . . . . . 2 . . 9 1 3 11 Pick Up 88 | . 1 9 7 5 18 7 8 3 11 7 1 1 . . 6 2 2 . Fast Attach 119 | . 1 9 21 17 18 5 5 1 4 1 1 7 . 5 12 10 . 2 Attach 68 | . . . 4 5 9 9 6 . 16 7 4 1 . . 3 . 4 . Detach 8 | . . . 2 1 1 . . . 1 . . . . 1 . 1 1 . Swap 59 | . 1 7 8 9 11 15 3 . 2 1 . . . . . . . 2 Drop 106 | . . 19 20 15 13 8 8 6 . . . . . 1 8 2 . 6 Fire 544 | . 9 29 106 68 105 67 19 14 89 31 7 . . . . . . . Melee 65 | . . . 4 . 7 . . . 1 3 12 . . . 9 3 14 12 Ram 2 | . . . . . . . . . . . . . . . 1 . . 1 Kick . | . . . . . . . . . . . . . . . . . . . Crush 4 | . . . . . . . . . 1 . 3 . . . . . . . Escape Stasis 64 | . . . . . . 64 . . . . . . . . . . . . Rewire 41 | . . . . . . 39 . . . . . 2 . . . . . . Trap . | . . . . . . . . . . . . . . . . . . . Miscellaneous . | . . . . . . . . . . . . . . . . . . . Route ------- -11/Scrapyard -10/Materials (discovered 2 exits: *Mat / [*Min]) -9/Materials (discovered 2 exits: *Mat / [*Min]) -8/Materials (discovered 2 exits: *Fac x2) -7/Factory -6/Factory (discovered 4 exits: Low x2 / *Ext x2) -6/Extension (discovered 3 exits: *Fac x2 / *Cet) -6/Cetus (discovered 2 exits: *Fac / *Arc) -6/Archives (discovered 3 exits: *Fac / [*Hub x2]) -5/Factory (discovered 3 exits: *Fac / *Upp x2) -5/Upper Caves -5/Upper Caves (discovered 2 exits: Fac / *Zhi) -5/Zhirov -4/Proximity Caves -4/Factory -3/Research (discovered 3 exits: Arm / *Tes x2) -3/Testing -2/Research -1/Access History --------- Turn | Location | Event 1 | -11/Scrapyard | Discovered new exit (range 0) 1 | -11/Scrapyard | Entered Materials 76 | -10/Materials | Discovered new exit (range 16) 172 | -10/Materials | Discovered new exit (range 5) 300 | -10/Materials | Build established: Mutant 320 | -10/Materials | Entered another Materials area 320 | -9/Materials | Evolved 2 slots: Utility x2 705 | -9/Materials | Destroyed 7 combat bots 813 | -9/Materials | Discovered new exit (range 13) 985 | -9/Materials | Discovered new exit (range 16) 1012 | -9/Materials | Entered another Materials area 1012 | -8/Materials | Evolved 2 slots: Propulsion x2 1527 | -8/Materials | Garrison activated, responded to threat 1540 | -8/Materials | Discovered new exit (range 10) 1657 | -8/Materials | Garrison activated, responded to threat 1719 | -8/Materials | Destroyed 9 combat bots 2043 | -8/Materials | Build established: Scavenger-Mutant 2185 | -8/Materials | Discovered new exit (range 7) 2652 | -8/Materials | Entered Factory 2652 | -7/Factory | Evolved 2 slots: Utility x1, Weapon x1 2877 | -7/Factory | Fabricated Arm. Treads (x2) 2951 | -7/Factory | Build established: Scavenger-Gunner 3283 | -7/Factory | Garrison activated, responded to threat 3346 | -7/Factory | Lost 4 parts (2n2w) 3348 | -7/Factory | Destroyed 7 combat bots 3530 | -7/Factory | Discovered new exit (range 15) 3539 | -7/Factory | Fabricated Arm. Treads (x2) 3573 | -7/Factory | Lost 4 parts (2n2w) 3631 | -7/Factory | Lost 4 parts (1p1n2w) 3690 | -7/Factory | Garrison activated, responded to threat 3710 | -7/Factory | Entered another Factory area 3710 | -6/Factory | Evolved 2 slots: Utility x2 4282 | -6/Factory | Found Prototype Processor 4282 | -6/Factory | Identified Exp. Targeting Computer 4927 | -6/Factory | Build established: Scavenger-Mutant 5176 | -6/Factory | Identified exit to Lower Caves 5176 | -6/Factory | Identified exit to Extension 5549 | -6/Factory | Lost 6 parts (1p1n3u1w) 5922 | -6/Factory | Entered Extension 5962 | -6/Extension | Rescued a captive Derelict 6298 | -6/Extension | Spotted B-75 Beast 6646 | -6/Extension | Destroyed B-75 Beast 6657 | -6/Extension | Spotted B-75 Beast 6664 | -6/Extension | Lost 4 parts (1p1u2w) 6671 | -6/Extension | Destroyed B-75 Beast 6748 | -6/Extension | Discovered new exit (range 3) 6822 | -6/Extension | Disrupted transfer network 6907 | -6/Extension | Build established: Scavenger-Gunner 6938 | -6/Extension | Lost 3 parts (3n) 6964 | -6/Extension | Core integrity fell below 50% 7020 | -6/Extension | Discovered new exit (range 22) 7020 | -6/Extension | Discovered new exit (range 22) 7048 | -6/Extension | Entered Cetus 7066 | -6/Cetus | Spotted Cetus Guard 7066 | -6/Cetus | Spotted Cetus Guard 7066 | -6/Cetus | Spotted Cetus Guard 7066 | -6/Cetus | Spotted Cetus Guard 7084 | -6/Cetus | Destroyed Cetus Guard 7097 | -6/Cetus | Destroyed Cetus Guard 7108 | -6/Cetus | Destroyed Cetus Guard 7108 | -6/Cetus | Destroyed Cetus Guard 7136 | -6/Cetus | Lost 6 parts (3n3w) 7191 | -6/Cetus | Discovered new exit (range 21) 7313 | -6/Cetus | Discovered new exit (range 22) 7349 | -6/Cetus | Spotted Cetus Guard 7349 | -6/Cetus | Spotted Cetus Guard 7349 | -6/Cetus | Spotted Cetus Guard 7349 | -6/Cetus | Spotted Cetus Guard 7381 | -6/Cetus | Entered Archives 7461 | -6/Archives | Discovered new exit (range 22) 7482 | -6/Archives | Discovered new exit (range 22) 7490 | -6/Archives | Discovered new exit (range 20) 7504 | -6/Archives | Unable to access archive contents 7522 | -6/Archives | Unable to access archive contents 7543 | -6/Archives | Unable to access archive contents 7562 | -6/Archives | Unable to access archive contents 7603 | -6/Archives | Entered Factory 7603 | -5/Factory | Evolved 2 slots: Utility x2 7910 | -5/Factory | Build established: Scavenger-Skirmisher 8442 | -5/Factory | Garrison activated, responded to threat 8598 | -5/Factory | Lost 3 parts (1p2w) 8670 | -5/Factory | Destroyed 7 combat bots 8803 | -5/Factory | First assault squad dispatched 8907 | -5/Factory | Lost 3 parts (2n1w) 8974 | -5/Factory | Lost 3 parts (2u1w) 8987 | -5/Factory | Discovered new exit (range 21) 9057 | -5/Factory | Identified exit to Upper Caves 9259 | -5/Factory | Fabricated Arm. Medium Treads (x2) 9349 | -5/Factory | Build established: Scavenger-Gunner 9376 | -5/Factory | Entered Upper Caves 9464 | -5/Upper Caves | Attracted the attention of an 0b10 outpost 9493 | -5/Upper Caves | System corruption reached 10% 9562 | -5/Upper Caves | Destroyed 9 combat bots 9568 | -5/Upper Caves | Lost 9 parts (2n4u3w) 9764 | -5/Upper Caves | Build established: Scavenger-Mutant 9779 | -5/Upper Caves | Ambushed by wild Derelicts 9896 | -5/Upper Caves | Discovered new exit (range 13) 9919 | -5/Upper Caves | Entered another Upper Caves area 9921 | -5/Upper Caves | Attracted the attention of an 0b10 checkpoint 9952 | -5/Upper Caves | Core integrity fell below 50% 9972 | -5/Upper Caves | Lost 5 parts (1n1u3w) 10068 | -5/Upper Caves | Attracted the attention of an 0b10 outpost 10078 | -5/Upper Caves | Identified exit to Factory 10080 | -5/Upper Caves | Released all parts (8) 10106 | -5/Upper Caves | Lost 6 parts (2p3u1w) 10109 | -5/Upper Caves | Learned Factory interactive machine intel 10134 | -5/Upper Caves | Discovered new exit (range 12) 10140 | -5/Upper Caves | Entered Zhirov 10140 | -5/Zhirov | Discovered new exit (range 3) 10150 | -5/Zhirov | Met Zhirov 10167 | -5/Zhirov | Learned location of Quarantine (-2) 10170 | -5/Zhirov | Zhirov requested help retrieving the SGEMP Prototype 10228 | -5/Zhirov | Found Alien Artifact 10228 | -5/Zhirov | Identified Integrated Reactor 10228 | -5/Zhirov | Installed Integrated Reactor, increased core energy generation (+10) 10233 | -5/Zhirov | Found Alien Artifact 10249 | -5/Zhirov | Entered Proximity Caves 10324 | -4/Proximity Caves | Learned Research trap positions 10339 | -4/Proximity Caves | Discovered exit to Factory (range 8) 10341 | -4/Proximity Caves | Entered Factory 10341 | -4/Factory | Evolved 2 slots: Power x1, Propulsion x1 10342 | -4/Factory | Loaded intel: 45 interactive machine locations 10362 | -4/Factory | Identified Transdimensional Reconstructor 10384 | -4/Factory | Found Exp. Targeting Computer 10417 | -4/Factory | Discovered new exit (range 8) 10426 | -4/Factory | Entered Research 10426 | -3/Research | Evolved 2 slots: Utility x2 10427 | -3/Research | Loaded intel: 88 trap records 10430 | -3/Research | Found Antimissile System 10507 | -3/Research | Build established: Sprinter 10561 | -3/Research | Identified exit to Armory 10561 | -3/Research | Identified exit to Testing 10826 | -3/Research | Spotted B-86 Titan 10855 | -3/Research | Fabricated Exp. Optical Array? 10951 | -3/Research | Entered Testing 10960 | -3/Testing | Lost 3 parts (1p1n1u) 10964 | -3/Testing | Found Prototype Processor 10964 | -3/Testing | Identified Exp. Melee Analysis Suite 11034 | -3/Testing | Discovered new exit (range 15) 11049 | -3/Testing | Found Prototype Processor 11049 | -3/Testing | Identified Spectral Analyzer 11081 | -3/Testing | Entered Research 11081 | -2/Research | Evolved 2 slots: Propulsion x1, Utility x1 11165 | -2/Research | Spotted B-90 Cyclops 11200 | -2/Research | Discovered new exit (range 9) 11205 | -2/Research | Entered Access 11205 | -1/Access | Evolved 2 slots: Utility x2 11207 | -1/Access | Lost 5 parts (1p2n2u) 11226 | -1/Access | Spotted B-99 Colossus 11313 | -1/Access | Lost 5 parts (1p2n2u) 11456 | -1/Access | Build established: Mutant 11495 | -1/Access | Spotted B-99 Colossus 11520 | -1/Access | Core integrity fell below 50% 11528 | -1/Access | System corruption reached 10% 11529 | -1/Access | Core integrity fell below 20% 11543 | -1/Access | Lost 3 parts (1n1u1w) 11561 | -1/Access | Destroyed by S-43 Plague with Heavy Machine Gun Last Messages --------------- 11502_ Penetrated by Slug. 11502_ Slug penetrates Wall. 11505_ K-01 Serf collects debris. 11506_ U-05 Engineer lays Concrete. 11507_ Penetrated by Slug. 11507_ Slug penetrates Wall. 11508_ R-10 Processor collects Com. Wheel. 11512_ Penetrated by Slug. 11512_ Plasma Sword destroyed. 11513_ U-05 Engineer lays Concrete. 11516_ MF6ND YUN%H,1,4RK&2UIB7B1#GX#XIQ 11517_ Slug penetrates Wall. 11519_ Penetrated by Slug. 11522_ Slug penetrates Wall. 11529_ P-80 Master suffers critical hit. 11531_ P-80 Master resets P-80 Master, system corruption cleaned. 11537_ Slammed into K-01 Serf. 11538_ System corrupted: Heat flow error (+257). 11545_ W-44 Eye sends out distress signal. 11555_ System corrupted: Matter fused (-9). Map ----- +----------------------------------------------------+ | ?????????????????????????????# ] # ### | | ?????????????????????????????# + + | | ?????????????????????????????# ###### | | ?????????????????????????????# #????# | | ?????????????????????????????##############????# | | ???????????????????????????????????????????????# ! | | ???????????????????????????????????????????????# | | ???????????????????????????????????????????????# = | | ????????????????????????????????????############ | | ????????????????????????????????????# ## | | ????????????????????????????????????# #### | | ????????????????????????????????????# " # | | ????????????????????????????????????# """ / | | ???????????????????????????????###### """ # | | ???????????????????????????????# + " # | | ???????????????????????????????# ## # | | ???????????????????????????????# ## ! / | | ???????????????????????????????# ##############+ | | ???????????????????????????????# #????????# | | ???????????????????????????????# #????????# | | ???????????????????????????????# #????????# | | ??????????? ################### #????????# | | ??????????? k # #????????# | | ?????????? ^ # ##???????# [ | | ?????????? s ############## | | ?????????? @ # " #???? | | ?????????? + """ #???? | | ?????????? # """ #???? | | ??????????? k # " ????? | | ???????????######## ###? #???? | | ??????????????????# t #??? #???? | | ???????????????? "F "" = #???? #???? | | ??????????????? """"" #???? #???? | | ?????????????? """"" k #????? #???? | | ????????????? p#?????######???? | | ?????????????? #??????????????? | | ?????????????? #??????????????? | | ???????????????? ####### #??????????????? | | ??????????????????########????### ###????????????? | | ??????????????????????????????# #????????????? | | ??????????????????????????????# #????????????? | | ??????????????????????????????# #????????????? | | ??????????????????????????????# #????????????? | | ??????????????????????????????# #????????????? | | ??????????????????????????????## ##????????????? | | ???????????????????????????????# #?????????????? | | ???????????????????????????????# #?????????????? | | ???????????????????????????????# #?????????????? | | ???????????????????????????????# #?????????????? | | ???????????????????????????????# #?????????????? | +----------------------------------------------------+ Best States ------------- Heat Dissipation 85 Energy Generation 46 Energy Capacity 1305 Matter Stores 550 Matter Capacity 800 Sight Range 22 Robot Scan Range 13 Terrain Scan Range 20 Terrain Scan Density 85 Additional Mass Support 12 Base Temperature (-) 100 Armor Coverage 450 Resistance: TH 20 Core Shielding 40 Point Defense Rating 240 Phase Shifting 5 Evasion (%) 76 Targeting Accuracy 18 Armor Integrity Analysis 33 Recoil Reduction 4 Particle Charging 30 Offensive Hacking 10 Defensive Hacking 12 Item Schematics ----------------- Arm. Treads | -8/Materials | Scanalyzed Arm. Medium Treads | -5/Factory | Scanalyzed Assault Drone Bay | -5/Zhirov | Free Exp. Heat Sink | -5/Zhirov | Free Exp. Optical Array | -5/Zhirov | Free Imp. Arc Thrower | -5/Zhirov | Free Robot Schematics ------------------ None Fabricated ------------ Arm. Treads | x2 | -7/Factory Arm. Treads | x2 | -7/Factory Arm. Medium Treads | x2 | -5/Factory Exp. Optical Array | x1 | -3/Research Alien Tech Used ----------------- Integrated Reactor Achievements -------------- Dodgeball, But With Guns Gun Specialist Preemptive Strike Prolific Hacker Slippery One Challenges ------------ None Game ------ Seed DeliveryHellfireProtection Manual? 0 Play Time 02:56:13 Cumulative 39.8 hours Start 2021.09.10 @ 18:42:44 End 2021.09.13 @ 21:29:36 Sessions 9 Manual Loads 0 Difficulty Rogue Special Mode None Game No. 53 Rogue 53 Adventurer 0 Explorer 0 Win Type - Total 0 Types 0/0/0/0/0/0/0/0/0 Lore% 41 Gallery% 46 Achievement% 41 Wizard Run 0 Options --------- ASCII 0 Keyboard 0 Movement Numpad Keybinds 0 Fullscreen 1 Font 18/SmallcapsGlow Map View 76x50 Tactical HUD 1 Map Filters NONE Filters NONE Steam 1 RUN: 939421d2-584e-4a26-b8cc-2614318280fe